Cogmind - Beta 14 @@@ ROGUE MODE // 2024.12.10 @ 16:59:16 Player: N0-H Result: Destroyed by TP-V0H(R) with Subdweller Laser Performance ------------- Evolutions (0) 0 Regions Visited (3) 600 Robots Destroyed (33) 165 Value Destroyed (423) 423 Prototype IDs (0) 0 Alien Tech Used (0) 0 Bonus (-102) -102 TOTAL SCORE: 1086 Bonus ------- Follower Combat Kills 28 Friendly Fire -130 Cogmind --------- Core Integrity 0/250 Matter 281/300 Energy 140/160 System Corruption 0% Temperature Cool (12) Movement Rolling (110) Ox2 Location -10/Subcaves Parts ------- > --- POWER (1) -------- Light Nuclear Core > --- PROPULSION (2) --- Wheel > --- UTILITY (2) ------ Large Storage Unit Targeting Computer > --- WEAPON (2) ------- Medium Laser > --- INVENTORY (15) --- Wheel Wheel Sensor Array Signal Interpreter Signal Interpreter Improved Terrain Scanner Peak State ------------ > --- POWER ------------ Light Nuclear Core > --- PROPULSION ------- Wheel Compact Wheel > --- UTILITY ---------- Small Storage Unit Targeting Computer > --- WEAPON ----------- Particle Gun Light Assault Rifle > --- INVENTORY -------- Wheel Wheel Improved Heat Sink Sensor Array Signal Interpreter Signal Interpreter Improved Terrain Scanner Medium Laser [Rating: 11] Favorites ----------- Power Ion Engine Engine Ion Engine Power Core Light Nuclear Core Propulsion Compact Wheel Wheel Compact Wheel Utility Small Storage Unit Device Improved Terrain Scanner Storage Small Storage Unit Processor Targeting Computer Weapon Particle Gun Energy Gun Particle Gun Ballistic Gun Light Assault Rifle Special Weapon Mining Laser Build | -11 -10 -10 -10 ------- Run | Yrd Mat Min Sub Slots Evolved . | . . . . Power . | . . . . Propulsion . | . . . . Utility . | . . . . Weapon . | . . . . Parts Attached 23 | 7 9 4 3 Power 4 | 1 2 1 . Engine 3 | 1 2 . . Core 1 | . . 1 . Reactor . | . . . . Propulsion 7 | 2 3 1 1 Treads . | . . . . Leg . | . . . . Wheel 7 | 2 3 1 1 Hover . | . . . . Flight . | . . . . Utility 4 | 2 1 . 1 Device 1 | 1 . . . Storage 2 | 1 . . 1 Processor 1 | . 1 . . Hackware . | . . . . Protection . | . . . . Artifact . | . . . . Weapon 8 | 2 3 2 1 Energy Gun 5 | 2 2 . 1 Energy Cannon . | . . . . Ballistic Gun 2 | . 1 1 . Ballistic Cannon . | . . . . Launcher . | . . . . Special Weapon 1 | . . 1 . Impact Weapon . | . . . . Slashing Weapon . | . . . . Piercing Weapon . | . . . . Special Melee Weapon . | . . . . Unidentified Prototypes . | . . . . Parts Lost 5 | . 2 . 3 Power 1 | . 1 . . Propulsion 1 | . . . 1 Utility . | . . . . Weapon 3 | . 1 . 2 Highest Loss Streak 3 | . 1 . 3 To Critical Strikes . | . . . . Average Slot Usage (%) 97 | . 95 100 98 Engine 7 | . 10 7 . Core 4 | . . 6 14 Wheel 27 | . 28 28 27 Storage 14 | . 14 14 14 Processor 13 | . 12 14 14 Energy Gun 18 | . 25 14 14 Ballistic Gun 8 | . 2 13 13 Peak Build Rating 11 | 9 9 11 11 Average Rating 9 | 7 8 9 9 On Entrance 7 | . 9 9 10 Naked Turns . | . . . . Heaviest Build 29 | 15 15 14 29 Greatest Support 32 | 26 32 32 26 Greatest Overweight (x) 1 | . . . 1 Average Overweight (x) . | . . . . Largest Inventory Capacity 15 | 8 8 8 15 Average Capacity 8 | 7 8 8 13 Most Carried 8 | 5 8 8 8 Average Carried 7 | 3 7 7 7 Final Capacity 15 | 8 8 8 15 Final Carried 8 | 4 8 7 6 Class Distribution -------------------- 67% | Mutant 32% | Scavenger-Mutant Dominant Class ---------------- Mutant | -10/Materials Scavenger-Mutant | -10/Mines Scavenger-Mutant | -10/Subcaves Resources | -11 -10 -10 -10 ----------- Run | Yrd Mat Min Sub Matter Collected 419 | 270 81 57 11 Remotely . | . . . . Salvage Created 938 | 249 451 238 . Parts 70 | 20 30 20 . Haulers Intercepted . | . . . . Recyclers Shooed 3 | . 2 1 . Parts Field Recycled . | . . . . Retrieved Matter . | . . . . Parts Self-Destructed 7 | . . . 7 Prevented . | . . . . Kills | -11 -10 -10 -10 ------- Run | Yrd Mat Min Sub Combat Hostiles Destroyed 13 | . 6 7 . Guns 13 | . 6 7 . Classes Destroyed 6 | 3 2 1 . Worker 8 | 2 4 2 . Tunneler 6 | 5 . 1 . Recycler 3 | 1 1 1 . Watcher 2 | . 2 . . Swarmer 7 | . . 7 . Grunt 7 | . 6 1 . Best Kill Streak 4 | 4 3 3 . Combat Bots Only 3 | . 2 3 . Max Kills in Single Turn 1 | 1 1 1 . Gunslinging . | . . . . Exploded . | . . . . Melee . | . . . . Uniques/NPCs Destroyed . | . . . . Combat | -11 -10 -10 -10 -------- Run | Yrd Mat Min Sub Hostile Shots Fired 87 | . 36 33 18 Missed 18 | . 9 7 2 Damage Taken 910 | . 372 207 331 Core 255 | . 85 80 90 Absorbed by Shields . | . . . . Regen/Repaired (Parts) 28 | . 28 . . Core Remaining (%) 100 | 100 . . . Volleys Fired 91 | 13 37 34 7 Largest 2 | 2 2 2 2 Hottest 115 | 90 115 100 85 Shots Fired 164 | 26 67 59 12 Gun 157 | 26 67 52 12 Cannon . | . . . . Launcher . | . . . . Special 7 | . . 7 . Kinetic 33 | . 1 27 5 Thermal 101 | 13 49 32 7 Explosive . | . . . . Electromagnetic 30 | 13 17 . . Robot Hit Streak 12 | 6 12 6 10 Robot Miss Streak 4 | 3 2 4 2 Penetration Max . | . . . . Secondary Targets 3 | . 1 2 . Max Gunslinging Chain 1 | . 1 1 . Shots Hit Robots 96 | 15 45 26 10 Core Hits 45 | 9 21 13 2 Critical Kills . | . . . . Critical Parts Destroyed . | . . . . Critical Strikes 7 | 3 4 . . Burn 4 | 1 3 . . Corrupt 3 | 2 1 . . Melee Attacks . | . . . . Impact . | . . . . Slashing . | . . . . Piercing . | . . . . Sneak Attacks . | . . . . Combat Hostiles . | . . . . Follow-up Attacks . | . . . . Damage Inflicted 1346 | 193 702 324 127 Guns 1270 | 193 626 324 127 Cannons . | . . . . Explosions 76 | . 76 . . Melee . | . . . . Ramming . | . . . . Kinetic 129 | . . 103 26 Thermal 922 | 74 526 221 101 Explosive . | . . . . Electromagnetic 295 | 119 176 . . Impact . | . . . . Slashing . | . . . . Piercing . | . . . . Highest Corruption . | . . . . Average Corruption . | . . . . Corruption Purged . | . . . . Corruption Blocked . | . . . . Overload Shots . | . . . . Overflow Damage . | . . . . Projectiles . | . . . . Explosions . | . . . . Melee . | . . . . Knockbacks . | . . . . Impact . | . . . . Kinetic . | . . . . Secondary . | . . . . Self-Inflicted Damage . | . . . . Shots . | . . . . Rammed . | . . . . Targets Rammed . | . . . . Kicked . | . . . . Crushed . | . . . . Highest Temperature 375 | 90 375 256 17 Average Temperature 92 | 37 131 74 7 Received Heat Transfer 279 | . 216 . 63 Effects 5 | . 4 1 . Energy Bleed 1 | . . 1 . Interference 4 | . 4 . . Siege Activations . | . . . . Robots Corrupted . | . . . . Combat Hostiles . | . . . . Parts Fried 1 | . 1 . . Impact Corruptions . | . . . . Robots Melted . | . . . . Combat Hostiles . | . . . . Parts Melted 4 | 1 1 2 . Heat Transferred 2640 | 296 1530 555 259 Parts Sabotaged . | . . . . Parts Stolen . | . . . . Parts Stripped . | . . . . Power Chain Reactions 2 | . 2 . . Alert | -11 -10 -10 -10 ------- Run | Yrd Mat Min Sub Peak Influence 311 | 40 211 311 . Initial 26 | . 26 18 . Average 118 | 23 103 162 . Maximum Alert Level 1 | . 1 1 . Low Security (%) 88 | 100 94 79 . Level 1 11 | . 5 20 . Level 2 . | . . . . Level 3 . | . . . . Level 4 . | . . . . Level 5 . | . . . . High Security . | . . . . Max Security . | . . . . Squads Dispatched 1 | . 1 . . Investigation . | . . . . Extermination . | . . . . Reinforcement 1 | . 1 . . Assault . | . . . . Garrison . | . . . . Intercept . | . . . . Searches Triggered . | . . . . Construction Impeded . | . . . . Haulers Reinforced . | . . . . Active Scanning Responses . | . . . . Cargo Convoy Interrupts . | . . . . Stealth | -11 -10 -10 -10 --------- Run | Yrd Mat Min Sub Distress Signals 1 | . 1 . . Communications Jammed . | . . . . Distress Signals . | . . . . Times Spotted 36 | . 12 13 11 Peak Tracking Total 7 | . 5 3 7 Tactical Retreats 2 | . . 1 1 Traps | -11 -10 -10 -10 ------- Run | Yrd Mat Min Sub Traps Triggered . | . . . . Indirectly . | . . . . Trap Hack Attempts . | . . . . Triggered . | . . . . Disarmed . | . . . . Reprogrammed . | . . . . Reused . | . . . . Traps Extracted . | . . . . Installed . | . . . . Triggered . | . . . . Machines | -11 -10 -10 -10 ---------- Run | Yrd Mat Min Sub Machines Disabled 1 | . 1 . . Max in Single Turn 1 | . 1 . . Machines Repaired . | . . . . Machines Dismantled . | . . . . Machines Sabotaged . | . . . . Overloaded Fab Kills . | . . . . Hacking | -11 -10 -10 -10 --------- Run | Yrd Mat Min Sub Machines Accessed 4 | . 4 . . Terminals 2 | . 2 . . Fabricators . | . . . . Repair Stations 1 | . 1 . . Recycling Units 1 | . 1 . . Scanalyzers . | . . . . Garrison Access . | . . . . Total Hacks 7 | . 7 . . Successful 5 | . 5 . . Failed 2 | . 2 . . Catastrophic 1 | . 1 . . Database Lockouts . | . . . . Manual . | . . . . Terminals 2 | . 2 . . Fabricators . | . . . . Repair Stations 2 | . 2 . . Recycling Units 3 | . 3 . . Scanalyzers . | . . . . Garrison Access . | . . . . Terminal Hacks 1 | . 1 . . Branch Access Points 1 | . 1 . . Fabricator Hacks . | . . . . Repair Station Hacks 2 | . 2 . . Scan Component 1 | . 1 . . Repair 1 | . 1 . . Recycling Unit Hacks 2 | . 2 . . Report Inventory 1 | . 1 . . Retrieve Components 1 | . 1 . . Scanalyzer . | . . . . Garrison Access Hacks . | . . . . Unauthorized Hacks . | . . . . Terminals . | . . . . Fabricators . | . . . . Repair Stations . | . . . . Recycling Units . | . . . . Scanalyzers . | . . . . Garrison Access . | . . . . Data Cores Recovered . | . . . . Used . | . . . . Hacking Detections 3 | . 3 . . Full Trace Events . | . . . . Feedback Events . | . . . . Feedback Blocked . | . . . . Robot Schematics Acquired . | . . . . Robots Built . | . . . . Authchips . | . . . . Time . | . . . . Total Robot Build Rating . | . . . . Part Schematics Acquired . | . . . . Parts Built . | . . . . Authchips . | . . . . Time . | . . . . Total Part Build Rating . | . . . . Parts Repaired 1 | . 1 . . Time 32 | . 32 . . Parts Recycled . | . . . . Recycled Matter . | . . . . Retrieved Matter . | . . . . Retrieved Components 5 | . 5 . . Parts Scanalyzed . | . . . . Part Schematics Acquired . | . . . . Parts Damaged . | . . . . Bothacking | -11 -10 -10 -10 ------------ Run | Yrd Mat Min Sub Used RIF Installer . | . . . . Robots Hacked . | . . . . Non-combat . | . . . . Combat . | . . . . Robot Hacks Applied . | . . . . Relay Couplers Released . | . . . . Fabnet Peak Effective % . | . . . . Robots Rewired . | . . . . Allies Hacked . | . . . . Hacks Repelled . | . . . . Allies | -11 -10 -10 -10 -------- Run | Yrd Mat Min Sub Total Allies 3 | . . 3 . Largest Group 3 | . . 3 1 Highest-Rated Group 40 | . . 40 16 Highest-Rated Ally 16 | . . 16 16 Total Orders . | . . . . Ally Attacks 24 | . . 24 . Total Damage 219 | . . 219 . Kills 4 | . . 4 . Allies Corrupted . | . . . . Allies Melted . | . . . . Intel | -11 -10 -10 -10 ------- Run | Yrd Mat Min Sub Robot Analysis Total . | . . . . Derelict Logs Recovered 1 | . . 1 . Drone Launches . | . . . . Drone Recoveries . | . . . . Exploration | -11 -10 -10 -10 ------------- Run | Yrd Mat Min Sub Turns Passed 1561 | 181 595 575 210 Spaces Moved 966 | 75 311 464 116 Core 11 | 11 . . . Treads . | . . . . Legs . | . . . . Wheels 955 | 64 311 464 116 Hover . | . . . . Flight . | . . . . Fastest Speed 50 | 50 90 90 90 Average Speed 94 | 84 96 94 99 Slowest Speed 105 | 90 100 100 105 Overloaded Moves . | . . . . Propulsion Burnouts . | . . . . Robots Hopped . | . . . . Cave-ins Triggered . | . . . . Exploration Rate (%) 35 | 4 46 80 10 Regions Visited 3 Branch Regions 2 Pre-discovered Areas . | . . . . Known Exits Taken 1 | . 1 . . Unknown Exits Taken 2 | 1 . 1 . Scrap Searched 1 | . . 1 . Spaces Dug . | . . . . Terrain Destroyed 6 | . 5 1 . Melee . | . . . . Projectile 1 | . . 1 . AOE 5 | . 5 . . Terrain Rammed . | . . . . Walls Destroyed . | . . . . Machines Disabled . | . . . . Actions | -11 -10 -10 -10 --------- Run | Yrd Mat Min Sub Total 1439 | 166 538 536 199 Wait 332 | 61 170 30 71 Move 963 | 74 310 463 116 Hop . | . . . . Pick Up 21 | 11 8 1 1 Fast Attach 1 | . 1 . . Attach 11 | 7 2 1 1 Detach . | . . . . Swap 11 | . 6 3 2 Drop 9 | . 4 4 1 Fire 91 | 13 37 34 7 Melee . | . . . . Ram . | . . . . Kick . | . . . . Crush . | . . . . Escape Stasis . | . . . . Rewire . | . . . . Trap . | . . . . Miscellaneous . | . . . . Route ------- -11/Scrapyard -10/Materials (discovered 2 exits: *Min x2) -10/Mines (discovered 2 exits: [*Mat] / [*Sub]) -10/Subcaves History --------- Turn | Location | Event 2 | -11/Scrapyard | Met Revision 17 9 | -11/Scrapyard | Discovered new exit (range 15) 182 | -11/Scrapyard | Entered Materials 191 | -10/Materials | Discovered new exit (range 16) 273 | -10/Materials | Discovered new exit (range 13) 304 | -10/Materials | Build established: Mutant 605 | -10/Materials | Identified exit to Mines 716 | -10/Materials | Repaired Particle Gun 777 | -10/Materials | Entered Mines 786 | -10/Mines | Core integrity fell below 50% 871 | -10/Mines | Learned Materials security intel 903 | -10/Mines | Assisted by bots powering up and referring to "LRC-V3" 1136 | -10/Mines | Discovered new exit (range 12) 1337 | -10/Mines | Discovered new exit (range 3) 1352 | -10/Mines | Entered Subcaves 1352 | -10/Subcaves | Accompanied by 1 ally 1372 | -10/Subcaves | Build established: Scavenger-Mutant 1490 | -10/Subcaves | Ambushed by swarm of Subdwellers 1496 | -10/Subcaves | A swath of the cavern ceiling suddenly collapsed 1549 | -10/Subcaves | Lost 5 allies 1559 | -10/Subcaves | Core integrity fell below 20% 1562 | -10/Subcaves | Destroyed by TP-V0H(R) with Subdweller Laser Last Messages --------------- 01494_ RB-E07(h): "The Subs are coming!" 01495_ 9G-GAS(g): "Sorry we're late! Had another grouchy Sub to deal with. Who's the new fellow?" 01496_ RB-E07(h) crushed by falling debris. 01496_ RB-E07(h) system corrupted by crushing effect. 01496_ Trooper 1a crushed by falling debris. 01496_ Trooper 1a destroyed. 01496_ 9 Matter crushed. 01496_ 8 Matter crushed. A swath of the cavern ceiling suddenly collapses. 01496_ RB-E07(h) system terminally corrupted. 01511_ 1H-HIH(g) destroyed. 01516_ 9G-GAS(g) destroyed. 01556_ Lgt. Assault Rifle destroyed. 01559_ Com. Wheel destroyed. 01561_ Particle Gun destroyed. Map ----- +----------------------------------------------------+ | ##???????????????????????????????????????????????? | | ##??????????????????????????????????????????????? | | #??????????????????????????????????????????????? | | #??????????????????????????????????????????????? | | ##???? ###????????????????????????????????????? | | ### ???????????????????????????????????? | | ???????????????????????????????????? | | #?????????????????????????????????????????? | | ## % #??????????????????????????????????????????? | | #?? ?????????????????????????????????????????????? | | ??# ?????????????????????????????????????????????? | | ?# ?#????????????????????????????????????????????? | | # #????????????????????????????????????????????? | | ##??????????????????????????????????????????? | | ? #??????????????????????????????????????????? | | ?? ##?????????????????????????????????????????? | | ???# ###???????????????????????????????????????? | | ##### ##??????????????????????????????????????? | | #??????????????????????????????????????? | | #???????????????????????????????????????? | | !% ##???????????????????????????????????????? | | %!## ##????????????????????????????????????????? | | ! ## %##????????????????????????????????????????? | | %% #########??????######????????????????????? | | ## #??????#; R##???????????????????? | | ### #???#????#@ R #???????????????????? | | #?# #??## ???##RR #???????????????????? | | #?# ######?## ##??#R #???????????????????? | | ####% #??###?# #### ##???????????????????? | | #?## #?? %### ## ##????????????????????? | | ?## #?? ## #?????????????????????? | | ?# ##? ## ##?????????????????????? | | ?# ## %#% ##??????????????????????? | | # ### # ##""#??????????????????????? | | # #??## # ##""####????????????????????? | | # ????## ####""%#????????????????????? | | ## ?????#% ##"#""#????????????????????? | | ?# ???### ### #####""##???????????????????? | | ?# ???## #?# #???##""#???????????????????? | | ? ???# #?# #??##""##???????????????????? | | ? ???# ### ###?#"""##???????????????????? | | ????#### ### """######"#???????????????????? | | ????????## ## """#####""#???????????????????? | | ?????????## ##!"#"""#####?????????????????? | | ???????????# ##%%!"#### ###???????????????? | | ???????????## ###*! "# #???????????????? | | ????????????######?# % "# % ????????????? | | ???????????????????# [""# # ????????????? | | ???????????????????# " ## ##??? ?????????????? | | ??????????????????# ##? ##????????????????????? | +----------------------------------------------------+ Best States ------------- Heat Dissipation 25 Energy Generation 14 Energy Capacity 250 Matter Stores 300 Matter Capacity 300 Sight Range 16 Terrain Scan Range 16 Terrain Scan Density 10 Evasion (%) 50 Targeting Accuracy 5 Item Schematics ----------------- None Robot Schematics ------------------ None Fabricated ------------ Nothing Alien Tech Used ----------------- None Achievements -------------- Backstab Challenges ------------ None Game ------ Seed ExplosiveSalvagingCutter Manual? 0 Play Time 00:22:50 Cumulative 4.8 hours Start 2024.12.05 @ 18:48:26 End 2024.12.10 @ 16:59:16 Sessions 1 Manual Loads 0 Difficulty Rogue Special Mode None Game No. 7 Rogue 7 Adventurer 0 Explorer 0 Win Type - Total 0 Types 0/0/0/0/0/0/0/0/0 Lore% 4 Gallery% 11 Achievement% 13 Wizard Run 0 Options --------- Layout 1 ASCII 0 Keyboard 0 Movement Mouse Keybinds 0 Fullscreen 1 Font 32/SmallcapsGlow Map View 50x40 Zoom Use 0% Tactical HUD 1 Map Filters NONE Filters NONE Steam 1 RUN: ed51df00-a307-489d-a743-aac3d6960fde